fUSD/lending_fUSD_20260122
["ID","MTS","AMOUNT","RATE_DAILY","PERIOD"]
[403052773,1769104246424,-1454.62309315,0.00025968,2]
[403052774,1769104246667,-45.37690685,0.00025968,2]
[403052775,1769104246677,-350.0,0.00025968,2]
[403052776,1769104246687,-29.6230931,0.00025968,2]
[403052777,1769104246699,-1470.3769069,0.00025968,2]
[403052778,1769104246708,-1500.0,0.00025968,2]
[403052779,1769104246718,-1500.0,0.00025968,2]
[403052780,1769104246729,-1500.0,0.00025968,2]
[403052781,1769104246739,-1285.54220814,0.00025968,2]
[403052782,1769104246749,-1500.0,0.00025968,2]
[403052783,1769104246759,-191.58643206,0.00025968,2]
[403052784,1769104246768,-1200.0,0.0002597,2]
[403052785,1769104246778,-216.13676815,0.00026,2]
[403052786,1769104246788,-3210.0,0.00026093,2]
[403052787,1769104246798,-1000.0,0.00026228,2]
[403052788,1769104246807,-500.0,0.00026299,2]
[403052789,1769104246817,-29729.16767647,0.000263,2]
[403052790,1769104246827,-523.0,0.00026311,8]
[403052791,1769104246836,-285.70452546,0.00026343,2]
[403052792,1769104246846,-7128.30817941,0.000264,2]
[403052793,1769104246859,-20301.62760466,0.000264,2]
[403052794,1769104246868,-166.66,0.00026499,2]
[403052795,1769104246878,-1390.41064082,0.00026516,2]
[403052796,1769104246889,-433.63745442,0.00026516,2]
[403052798,1769104246913,-175.95190476,0.00026516,2]
[403052799,1769104246923,-97.8077293,0.00026516,2]
[403052801,1769104264163,21000.0,0.00021,120]
[403052803,1769105138991,-500.0,0.00015725,2]
[403052804,1769105139025,-281.0,0.00015725,2]
[403052805,1769105296957,502.93936767,0.000157,2]
[403052814,1769105431351,-1200.0,0.00015699,2]
[403052815,1769105431361,-2527.50947885,0.000157,2]
[403052816,1769105431373,-5351.0,0.000157,2]
[403052817,1769105431406,-631.40074476,0.000157,2]
[403052818,1769105431418,-1182.79273477,0.000157,2]
[403052819,1769105431429,-424.72961453,0.000157,2]
[403052820,1769105431512,-3644.00137046,0.000157,2]
[403052821,1769105431524,-444.35668896,0.000157,2]
[403052822,1769105431534,-281.0,0.000157,2]
[403052823,1769105431544,-174.64331104,0.0001579,2]
[403052824,1769105431567,-125.35668896,0.0001579,2]
[403052825,1769105431577,-202.81055086,0.00015791,2]
[403052826,1769105431587,-500.0,0.00015791,2]
[403052827,1769105431597,-500.0,0.00015791,2]
[403052828,1769105431607,-500.0,0.00015791,2]
[403052829,1769105431615,-500.0,0.00015791,2]
[403052831,1769105431625,-500.0,0.00015791,2]
[403052832,1769105431639,-500.0,0.00015791,2]
[403052833,1769105431648,-500.0,0.00015791,2]
[403052834,1769105431658,-500.0,0.00015791,2]
[403052835,1769105431668,-499.72603905,0.00015791,2]
[403052836,1769105431679,-500.0,0.00015799,2]
[403052839,1769105431689,-514.01285189,0.00015799,2]
[403052841,1769105431698,-3290.30651322,0.00015799,2]
[403052843,1769105431711,-500.0,0.00015799,2]
[403052844,1769105431721,-500.0,0.00015799,2]
[403052847,1769105431731,-500.0,0.00015899,2]
[403052849,1769105431741,-500.0,0.00015899,2]
[403052852,1769105431751,-500.0,0.00015899,2]
[403052855,1769105431760,-500.0,0.00015899,2]
[403052857,1769105431769,-500.0,0.00015899,2]
[403052859,1769105431783,-446.76047956,0.00015899,2]
[403052861,1769105431792,-500.0,0.00015899,2]
[403052863,1769105431801,-469.96167848,0.00015899,2]
[403052865,1769105431811,-500.0,0.00015899,2]
[403052867,1769105431821,-500.0,0.00015899,2]
[403052869,1769105431831,-500.0,0.00015899,2]
[403052871,1769105431840,-435.89165436,0.00015899,2]
[403052873,1769105431850,-391.38,0.00015899,2]
[403052876,1769105431860,-500.0,0.00015899,2]
[403052878,1769105431869,-500.0,0.00015899,2]
[403052880,1769105431879,-151.0,0.00016172,2]
[403052882,1769105431888,-391.38,0.00016173,2]
[403052884,1769105431898,-151.0,0.00016212,2]
[403052886,1769105431908,-151.0,0.00016212,2]
[403052888,1769105431917,-391.38,0.00016447,2]
[403052890,1769105431927,-391.38,0.00016721,2]
[403052892,1769105431936,-8716.72716517,0.000169,2]
[403052894,1769105431949,-277.99999996,0.000169,2]
[403052897,1769105431962,-447.5,0.000169,2]
[403052899,1769105431977,-41527.40331747,0.000169,2]
[403052901,1769105431990,-36341.64693089,0.000169,2]
[403052903,1769105432000,-391.42,0.00016995,2]
[403052906,1769105432011,-250.0,0.00017,2]
[403052908,1769105432022,-3631.05713481,0.0001705,2]
[403052910,1769105432032,-8741.24,0.00017137,2]
[403052912,1769105432042,-1634.0,0.00017256,2]
[403052914,1769105432052,-195.0,0.00017269,2]
[403052916,1769105432074,-250.0,0.0001727,2]
[403052918,1769105432085,-600.0,0.00017369,2]
[403052920,1769105432095,-390.49,0.00017498,2]
[403052922,1769105432105,-5886.67152919,0.00017628,2]
[403052924,1769105432115,-500.0,0.00017673,2]
[403052926,1769105432124,-500.0,0.00017673,2]
[403052928,1769105432133,-411.13373108,0.00017673,2]
[403052930,1769105432142,-150.99,0.00017728,2]
[403052932,1769105432152,-497.89,0.00017728,2]
[403052934,1769105432162,-11588.57,0.00017728,2]
[403052936,1769105432171,-9999.99,0.00017728,2]
[403052938,1769105432181,-24441.9,0.00017728,2]
[403052940,1769105432190,-4390.97088093,0.00017728,2]
[403052942,1769105432201,-2984.91576787,0.00017728,2]
[403053004,1769105437433,-4316.94990159,0.000157,2]
[403053005,1769105437481,-3545.62120439,0.000157,2]
[403053006,1769105437589,-470663.46789402,0.000157,2]
[403053007,1769105437601,-2624.1033512,0.00017728,2]
[403053008,1769105437612,-500.0,0.00017998,2]
[403053009,1769105437623,-500.0,0.00017998,2]
[403053010,1769105437635,-150.0,0.000181,7]
[403053011,1769105437646,-500.0,0.00018221,2]
[403053012,1769105437657,-5699.86676513,0.00018963,2]
[403053013,1769105437668,-300.0,0.00019,2]
[403053014,1769105437679,-1203.8,0.00019164,2]
[403053015,1769105437690,-503.44696293,0.00019246,2]
[403053016,1769105437701,-379.99,0.00019583,2]
[403053017,1769105437717,-523.0,0.000196,2]
[403053018,1769105437728,-2078.56,0.00019609,2]
[403053019,1769105437739,-3290.30651315,0.00019717,2]
[403053020,1769105437750,-1000.0,0.00019749,2]
[403053022,1769105437761,-200.0,0.0001977,2]
[403053024,1769105437772,-500.0,0.00019857,2]
[403053025,1769105437782,-1500.0,0.00019914,2]
[403053026,1769105437794,-166.66,0.0002001,2]
[403053027,1769105437804,-5886.67152911,0.00020285,2]
[403053028,1769105437815,-9000.0,0.00020632,2]
[403053029,1769105437826,-322.6107,0.00020632,2]
[403053030,1769105437836,-500.0,0.00020632,2]
[403053031,1769105437847,-500.0,0.00020632,2]
[403053032,1769105437858,-500.0,0.00020632,2]
[403053033,1769105437869,-500.0,0.00020632,2]
[403053034,1769105437880,-500.0,0.00020632,2]
[403053035,1769105437891,-500.0,0.00020632,2]
[403053036,1769105437903,-500.0,0.00020632,2]
[403053037,1769105437914,-500.0,0.00020632,2]
[403053038,1769105437925,-500.0,0.00020632,2]
[403053039,1769105437936,-500.0,0.00020632,2]
[403053040,1769105437946,-500.0,0.00020632,2]
[403053041,1769105437957,-500.0,0.00020632,2]
[403053042,1769105437967,-500.0,0.00020632,2]
[403053043,1769105437978,-500.0,0.00020632,2]
[403053044,1769105437989,-500.0,0.00020632,2]
[403053045,1769105437999,-250.0,0.00020632,2]
[403053046,1769105438010,-500.0,0.00020632,2]
[403053047,1769105438020,-250.0,0.00020632,2]
[403053048,1769105438031,-500.0,0.00020632,2]
[403053049,1769105438042,-250.0,0.00020632,2]
[403053050,1769105438053,-500.0,0.00020632,2]
[403053051,1769105438065,-250.0,0.00020632,2]
[403053052,1769105438076,-250.0,0.00020632,2]
[403053053,1769105438086,-500.0,0.00020632,2]
[403053054,1769105438097,-250.0,0.00020632,2]
[403053055,1769105438108,-151.0,0.00020632,2]
[403053056,1769105438119,-500.0,0.00020632,2]
[403053057,1769105438130,-250.0,0.00020632,2]
[403053058,1769105438141,-174.61919141,0.00020632,2]
[403053059,1769105438151,-500.0,0.00020632,2]
[403053060,1769105438162,-151.0,0.00020632,2]
[403053061,1769105438173,-250.0,0.00020632,2]
[403053062,1769105438184,-500.0,0.00020632,2]
[403053063,1769105438195,-151.0,0.00020632,2]
[403053064,1769105438206,-854.2589148,0.00020632,2]
[403053065,1769105438217,-250.0,0.00020632,2]
[403053066,1769105438228,-151.0,0.00020632,2]
[403053067,1769105438239,-250.0,0.00020632,2]
[403053068,1769105438251,-151.0,0.00020632,2]
[403053069,1769105438262,-250.0,0.00020632,2]
[403053070,1769105438272,-151.0,0.00020632,2]
[403053071,1769105438284,-151.0,0.00020632,2]
[403053072,1769105438295,-3210.0,0.00020632,2]
[403053073,1769105438306,-151.0,0.00020632,2]
[403053074,1769105438316,-151.0,0.00020632,2]
[403053075,1769105438328,-151.0,0.00020632,2]
[403053076,1769105438339,-500.0,0.00020632,2]
[403053077,1769105438351,-151.0,0.00020632,2]
[403053078,1769105438362,-500.0,0.00020632,2]
[403053079,1769105438374,-500.0,0.00020632,2]
[403053080,1769105438386,-500.0,0.00020632,2]
[403053081,1769105438397,-500.0,0.00020632,2]
[403053082,1769105438409,-500.0,0.00020632,2]
[403053083,1769105438420,-500.0,0.00020632,2]
[403053084,1769105438430,-500.0,0.00020632,2]
[403053085,1769105438440,-500.0,0.00020632,2]
[403053086,1769105438451,-500.0,0.00020632,2]
[403053087,1769105438461,-250.0,0.00020632,2]
[403053088,1769105438471,-500.0,0.00020632,2]
[403053089,1769105438480,-250.0,0.00020632,2]
[403053090,1769105438489,-250.0,0.00020632,2]
[403053091,1769105438500,-500.0,0.00020632,2]
[403053092,1769105438509,-500.0,0.00020632,2]
[403053093,1769105438519,-500.0,0.00020632,2]
[403053094,1769105438529,-500.0,0.00020632,2]
[403053095,1769105438538,-500.0,0.00020632,2]
[403053096,1769105438547,-500.0,0.00020632,2]
[403053097,1769105438557,-500.0,0.00020632,2]
[403053098,1769105438567,-500.0,0.00020632,2]
[403053099,1769105438577,-500.0,0.00020632,2]
[403053100,1769105438587,-500.0,0.00020632,2]
[403053101,1769105438597,-500.0,0.00020632,2]
[403053102,1769105438607,-250.0,0.00020744,2]
[403053103,1769105438616,-166.66,0.00020836,2]
[403053104,1769105438627,-885.86649465,0.0002118,2]
[403053105,1769105438638,-2056.338,0.00021272,2]
[403053106,1769105438648,-1203.8,0.00021282,2]
[403053107,1769105439137,-154.13,0.00021405,2]
[403053108,1769105439163,-166.66,0.00021662,2]
[403053109,1769105439176,-918.64355495,0.00021728,2]
[403053110,1769105439186,-3210.0,0.00022001,2]
[403053111,1769105439195,-1000.0,0.00022218,2]
[403053112,1769105439204,-762.8,0.00022439,2]
[403053113,1769105439214,-166.66,0.00022487,2]
[403053114,1769105439223,-500.0,0.00022506,30]
[403053115,1769105439232,-500.0,0.00022506,30]
[403053116,1769105439242,-500.0,0.00022506,30]
[403053117,1769105439251,-613.32292818,0.00022506,30]
[403053118,1769105439261,-5886.67152911,0.00022942,2]
[403053119,1769105439270,-523.0,0.00023153,5]
[403053121,1769105439279,-166.66,0.00023313,2]
[403053122,1769105439289,-3210.0,0.0002337,2]
[403053123,1769105439298,-1203.8,0.00023401,2]
[403053124,1769105439308,-3290.30651315,0.00023634,2]
[403053125,1769105439318,-606.94,0.00024086,2]
[403053126,1769105439328,-390.49,0.00024498,2]
[403053127,1769105439337,-160.64543439,0.00024599,2]
[403053128,1769105439346,-150.0,0.00024599,2]
[403053129,1769105439356,-150.0,0.00024599,2]
[403053130,1769105439365,-500.0,0.00024599,2]
[403053131,1769105439374,-150.0,0.00024599,2]
[403053132,1769105439383,-150.0,0.00024599,2]
[403053133,1769105439392,-150.0,0.00024599,2]
[403053134,1769105439401,-500.0,0.00024599,2]
[403053135,1769105439411,-250.0,0.00024599,2]
[403053136,1769105439420,-152.12544444,0.00024599,2]
[403053137,1769105439429,-150.0,0.00024599,2]
[403053139,1769105439438,-500.0,0.00024599,2]
[403053141,1769105439447,-181.0,0.00024599,2]
[403053142,1769105439456,-500.0,0.00024599,2]
[403053143,1769105439465,-150.0,0.00024599,2]
[403053144,1769105439474,-500.0,0.00024599,2]
[403053145,1769105439484,-500.0,0.00024599,2]
[403053146,1769105439492,-500.0,0.00024599,2]
[403053147,1769105439502,-150.0,0.00024599,2]
[403053148,1769105439511,-150.0,0.00024654,2]
[403053149,1769105439520,-500.0,0.00024654,2]
[403053150,1769105439529,-150.0,0.00024654,2]
[403053151,1769105439539,-150.0,0.00024654,2]
[403053152,1769105439548,-500.0,0.00024654,2]
[403053153,1769105439558,-150.0,0.00024654,2]
[403053154,1769105439567,-500.0,0.00024654,2]
[403053155,1769105439576,-500.0,0.00024654,2]
[403053156,1769105439586,-500.0,0.00024654,2]
[403053157,1769105439595,-500.0,0.00024654,2]
[403053158,1769105439604,-500.0,0.00024654,2]
[403053159,1769105439614,-150.0,0.00024654,2]
[403053160,1769105439623,-1000.0,0.00024658,2]
[403053161,1769105439633,-416.9,0.00024658,2]
[403053162,1769105439645,-150.0,0.00024658,2]
[403053163,1769105439654,-1000.0,0.00024687,2]
[403053164,1769105439664,-150.0,0.00024709,2]
[403053165,1769105439674,-607.51653588,0.00024709,2]
[403053166,1769105439686,-150.0,0.00024709,2]
[403053167,1769105439696,-150.0,0.00024709,2]
[403053168,1769105439706,-500.0,0.00024709,2]
[403053169,1769105439715,-500.0,0.00024709,2]
[403053170,1769105439725,-461.68383371,0.00024709,2]
[403053171,1769105439734,-500.0,0.00024709,2]
[403053172,1769105439747,-500.0,0.00024709,2]
[403053173,1769105439756,-300.0,0.00024709,2]
[403053174,1769105439766,-150.0,0.00024709,2]
[403053175,1769105439774,-3210.0,0.00024739,2]
[403053176,1769105439784,-150.0,0.00024763,2]
[403053177,1769105439793,-150.0,0.00024763,2]
[403053178,1769105439802,-150.0,0.00024763,2]
[403053179,1769105439812,-500.0,0.00024763,2]
[403053180,1769105439821,-500.0,0.00024763,2]
[403053181,1769105439830,-500.0,0.00024763,2]
[403053182,1769105439839,-500.0,0.00024763,2]
[403053183,1769105439848,-201.7333692,0.00024763,2]
[403053184,1769105439857,-5190.63968035,0.00024773,2]
[403053185,1769105439866,-227.54993751,0.00024818,2]
[403053186,1769105439875,-150.0,0.00024818,2]
[403053187,1769105439884,-500.0,0.00024818,2]
[403053188,1769105439893,-150.0,0.00024818,2]
[403053189,1769105439902,-331.44779673,0.00024818,2]
[403053190,1769105439911,-500.0,0.00024818,2]
[403053191,1769105439920,-500.0,0.00024818,2]
[403053192,1769105439930,-500.0,0.00024873,2]
[403053193,1769105439939,-500.0,0.00024873,2]
[403053194,1769105439948,-500.0,0.00024873,2]
[403053195,1769105439960,-500.0,0.00024873,2]
[403053196,1769105439969,-500.0,0.00024873,2]
[403053197,1769105439979,-500.0,0.00024873,2]
[403053198,1769105439988,-150.0,0.00024873,2]
[403053199,1769105439998,-500.0,0.00024873,2]
[403053200,1769105440007,-500.0,0.00024873,2]
[403053201,1769105440016,-500.44726884,0.00024873,2]
[403053202,1769105440025,-500.0,0.00024873,2]
[403053203,1769105440035,-500.0,0.00024873,2]
[403053204,1769105440044,-500.0,0.00024873,2]
[403053206,1769105440053,-500.0,0.00024873,2]
[403053207,1769105440062,-500.0,0.00024873,2]
[403053208,1769105440071,-500.0,0.00024873,2]
[403053209,1769105440080,-500.0,0.00024873,2]
[403053211,1769105440091,-500.0,0.00024873,2]
[403053213,1769105440100,-500.0,0.00024873,2]
[403053214,1769105440109,-500.0,0.00024873,2]
[403053215,1769105440118,-500.0,0.00024873,2]
[403053216,1769105440127,-500.0,0.00024873,2]
[403053218,1769105440136,-500.0,0.00024873,2]
[403053220,1769105440144,-500.0,0.00024873,2]
[403053222,1769105440153,-500.0,0.00024873,2]
[403053224,1769105440162,-500.0,0.00024873,2]
[403053226,1769105440171,-500.0,0.00024873,2]
[403053228,1769105440181,-500.0,0.00024873,2]
[403053229,1769105440190,-500.0,0.00024873,2]
[403053230,1769105440199,-500.0,0.00024873,2]
[403053231,1769105440208,-500.0,0.00024873,2]
[403053232,1769105440217,-574.17089799,0.00024873,2]
[403053233,1769105440226,-500.0,0.00024873,2]
[403053234,1769105440235,-500.0,0.00024873,2]
[403053235,1769105440245,-389.45608517,0.00024873,2]
[403053236,1769105440254,-500.0,0.00024873,2]
[403053237,1769105440264,-500.0,0.00024873,2]
[403053238,1769105440273,-500.0,0.00024873,2]
[403053239,1769105440282,-500.0,0.00024873,2]
[403053240,1769105440291,-500.86844017,0.00024873,2]
[403053241,1769105440300,-500.0,0.00024873,2]
[403053242,1769105440309,-500.0,0.00024873,2]
[403053243,1769105440318,-150.0,0.00024873,2]
[403053244,1769105440327,-562.63678791,0.00024873,2]
[403053245,1769105440337,-500.0,0.00024873,2]
[403053246,1769105440346,-500.0,0.00024873,2]
[403053247,1769105440356,-150.0,0.00024873,2]
[403053248,1769105440365,-500.0,0.00024873,2]
[403053249,1769105440374,-250.0,0.00024873,2]
[403053250,1769105440383,-360.2469951,0.00024873,2]
[403053251,1769105440392,-500.0,0.00024873,2]
[403053252,1769105440401,-173916.504208,0.000249,2]
[403053253,1769105440410,-5997.12083475,0.00024918,2]
[403053254,1769105440419,-500.0,0.00024928,2]
[403053255,1769105440428,-202.25809292,0.00024928,2]
[403053256,1769105440437,-500.0,0.00024983,2]
[403053257,1769105440447,-650.08899016,0.00025,2]
[403053258,1769105440456,-500.0,0.00025037,2]
[403053259,1769105440465,-500.0,0.00025092,2]
[403053260,1769105440474,-500.0,0.00025147,2]
[403053261,1769105440483,-500.0,0.00025202,2]
[403053262,1769105440491,-500.0,0.00025257,2]
[403053263,1769105440501,-500.0,0.00025311,2]
[403053264,1769105440509,-204.07466106,0.00025321,2]
[403053265,1769105440518,-205.55038648,0.00025366,2]
[403053266,1769105440527,-5997.12083475,0.00025391,2]
[403053267,1769105440536,-5997.12083475,0.000254,2]
[403053268,1769105440546,-17991.3625042,0.00025411,2]
[403053269,1769105440555,-1000.0,0.00025421,2]
[403053270,1769105440564,-1000.0,0.00025421,2]
[403053271,1769105440573,-1000.0,0.00025421,2]
[403053272,1769105440582,-1000.0,0.00025421,2]
[403053273,1769105440592,-1000.0,0.00025421,2]
[403053274,1769105440601,-1000.0,0.00025421,2]
[403053275,1769105440610,-1000.0,0.00025421,2]
[403053276,1769105440619,-250.0,0.00025421,2]
[403053277,1769105440628,-1000.0,0.00025421,2]
[403053278,1769105440640,-1000.0,0.00025421,2]
[403053279,1769105440649,-1000.0,0.00025421,2]
[403053280,1769105440658,-1000.0,0.00025421,2]
[403053281,1769105440668,-1000.0,0.00025421,2]
[403053282,1769105440678,-692.16316625,0.00025421,2]
[403053283,1769105440687,-1000.0,0.00025421,2]
[403053284,1769105440696,-1000.0,0.00025421,2]
[403053285,1769105440705,-1000.0,0.00025421,2]
[403053286,1769105440715,-1000.0,0.00025421,2]
[403053287,1769105440725,-1000.0,0.00025421,2]
[403053288,1769105440734,-1000.0,0.00025421,2]
[403053289,1769105440743,-1000.0,0.00025421,2]
[403053290,1769105440752,-1000.0,0.00025421,2]
[403053291,1769105440761,-800.0345526,0.00025421,2]
[403053292,1769105440771,-1000.0,0.00025421,2]
[403053293,1769105440780,-1000.0,0.00025421,2]
[403053294,1769105440789,-1000.0,0.00025421,2]
[403053295,1769105440799,-1000.0,0.00025421,2]
[403053296,1769105440808,-1000.0,0.00025421,2]
[403053297,1769105440817,-1003.53038109,0.00025421,2]
[403053298,1769105440826,-1000.0,0.00025421,2]
[403053299,1769105440836,-1000.0,0.00025421,2]
[403053300,1769105440844,-591.27334133,0.00025421,2]
[403053301,1769105440854,-1000.0,0.00025421,2]
[403053302,1769105440862,-1000.0,0.00025421,2]
[403053303,1769105440871,-639.47030969,0.00025421,2]
[403053304,1769105440880,-1000.0,0.00025421,2]
[403053305,1769105440889,-1000.0,0.00025421,2]
[403053306,1769105440898,-236.97822393,0.00025421,2]
[403053307,1769105440907,-1000.0,0.00025421,2]
[403053308,1769105440916,-1000.0,0.00025421,2]
[403053309,1769105440925,-1203.8,0.00025519,2]
[403053310,1769105440934,-5886.67152911,0.000256,2]
[403053311,1769105440944,-5997.12083475,0.00025848,2]
[403053312,1769105440954,-1055.446978,0.00025868,2]
[403053313,1769105440963,-11994.2416695,0.00025949,2]
[403053314,1769105440972,-11994.2416695,0.00025958,2]
[403053315,1769105440983,-1500.0,0.00025968,2]
[403053316,1769105440992,-899.63282818,0.00025968,2]
[403053317,1769105441001,-1500.0,0.00025968,2]
[403053318,1769105441010,-890.41015708,0.00025968,2]
[403053319,1769105441019,-1500.0,0.00025968,2]
[403053320,1769105441029,-1500.0,0.00025968,2]
[403053321,1769105441037,-201.18379417,0.00025968,2]
[403053322,1769105441046,-1500.0,0.00025968,2]
[403053323,1769105441056,-1500.0,0.00025968,2]
[403053324,1769105441065,-1500.0,0.00025968,2]
[403053325,1769105441075,-1500.0,0.00025968,2]
[403053326,1769105441084,-1500.0,0.00025968,2]
[403053327,1769105441093,-1500.0,0.00025968,2]
[403053328,1769105441102,-1500.0,0.00025968,2]
[403053329,1769105441112,-1500.0,0.00025968,2]
[403053330,1769105441121,-1500.0,0.00025968,2]
[403053331,1769105441129,-1500.0,0.00025968,2]
[403053332,1769105441138,-1500.0,0.00025968,2]
[403053333,1769105441147,-1500.0,0.00025968,2]
[403053334,1769105441157,-1500.0,0.00025968,2]
[403053335,1769105441166,-1500.0,0.00025968,2]
[403053336,1769105441175,-1399.06177826,0.00025968,2]
[403053337,1769105441184,-3210.0,0.00026108,2]
[403053338,1769105441193,-11994.2416695,0.0002613,2]
[403053339,1769105441202,-29985.6041737,0.0002614,2]
[403053340,1769105441211,-5968.0,0.0002615,2]
[403053341,1769105441220,-35182.07481683,0.0002615,2]
[403053342,1769105441260,-7145.191613,0.0002615,2]
[403053343,1769105441287,-470.0885198,0.0002615,2]
[403053344,1769105441298,-785.1468432,0.0002615,2]
[403053345,1769105441944,-500.0,0.00024599,2]
[403053346,1769105441954,-150.0,0.00024599,2]
[403053347,1769105441964,-150.0,0.00024599,2]
[403053348,1769105441973,-500.0,0.00024654,2]
[403053349,1769105441983,-197.42246964,0.00024709,2]
[403053350,1769105441992,-1901.52277901,0.0002615,2]
[403053351,1769105442004,-3927.26817981,0.0002615,2]
[403053352,1769105442108,-4562.79476105,0.0002615,2]
[403053353,1769105442118,-9697.5893036,0.0002616,2]
[403053354,1769105442127,-3905.33600349,0.0002616,2]
[403053355,1769105442139,-1405.08006027,0.0002616,2]
[403053356,1769105442177,-150.0,0.00024654,2]
[403053357,1769105442187,-222.86839505,0.0002616,2]
[403053358,1769105442202,-150.0,0.00024709,2]
[403053359,1769105442212,-8824.99999999,0.0002616,2]
[403053361,1769105442223,-430.4257349,0.0002616,2]
[403053363,1769105442439,-2844.23565072,0.0002616,2]
[403053367,1769105442453,-591.46997237,0.0002616,2]
[403053373,1769105442895,-150.0,0.00024599,2]
[403053374,1769105442904,-5608.36176899,0.0002616,2]
[403053375,1769105442915,-403.92,0.0002616,2]
[403053376,1769105442926,-3065.82931984,0.0002616,2]
[403053377,1769105442938,-259.19169647,0.0002616,2]
[403053378,1769105442949,-2493.1,0.0002616,2]
[403053379,1769105442960,-649.83334176,0.0002616,2]
[403053380,1769105442971,-713.13,0.0002616,2]
[403053381,1769105442983,-6019.73832867,0.0002616,2]
[403053383,1769105443071,-19669.87150628,0.0002616,2]
[403053384,1769105443081,-44783.6452818,0.0002616,2]
[403053386,1769105443090,-167.18028,0.0002625,2]
[403053388,1769105443099,-167.18029,0.0002625,2]
[403053390,1769105443108,-167.18028,0.0002625,2]
[403053392,1769105443117,-150.29145156,0.00026455,2]
[403053393,1769105443127,-5997.12083475,0.00026477,2]
[403053394,1769105443136,-5997.12083475,0.00026496,2]
[403053395,1769105443145,-5997.12083475,0.00026497,2]
[403053396,1769105443154,-5997.12083475,0.00026506,2]
[403053397,1769105443163,-151.0,0.00026516,2]
[403053398,1769105443173,-167.18029,0.00026516,2]
[403053399,1769105443182,-167.18029,0.00026516,2]
[403053400,1769105443192,-167.18028,0.00026516,2]
[403053401,1769105443201,-2000.0,0.00026516,2]
[403053402,1769105443210,-2000.0,0.00026516,2]
[403053403,1769105443220,-2003.12866994,0.00026516,2]
[403053404,1769105443229,-2000.0,0.00026516,2]
[403053405,1769105443239,-865.66665395,0.00026516,2]
[403053406,1769105443248,-2000.0,0.00026516,2]
[403053407,1769105443258,-1038.06736554,0.00026516,2]
[403053408,1769105443267,-1505.63014816,0.00026516,2]
[403053409,1769105443276,-2000.0,0.00026516,2]
[403053410,1769105443286,-508.90767806,0.00026516,2]
[403053411,1769105443295,-510.54803012,0.00026516,2]
[403053412,1769105443304,-1698.61326029,0.00026516,2]
[403053413,1769105443313,-504.13957622,0.00026516,2]
[403053414,1769105443323,-477.5083774,0.00026516,2]
[403053415,1769105443332,-163.33689384,0.00026516,2]
[403053416,1769105443341,-2000.0,0.00026516,2]
[403053417,1769105443350,-2000.0,0.00026516,2]
[403053418,1769105443359,-172.34199579,0.00026516,2]
[403053419,1769105443369,-5190.63968031,0.00026636,2]
[403053420,1769105443378,-523.0,0.00026706,8]
[403053421,1769105443387,-250.0,0.00027,2]
[403053422,1769105443396,-1032.4381348,0.00027,2]
[403053423,1769105443405,-530.0,0.00027,2]
[403053424,1769105443415,-3236.897308,0.00027,2]
[403053425,1769105443424,-1972.02281822,0.00027064,2]
[403053426,1769105443433,-688.7621836,0.00027064,2]
[403053427,1769105443443,-1500.0,0.00027064,2]
[403053428,1769105443452,-1773.49858789,0.00027064,2]
[403053429,1769105443461,-2007.70713806,0.00027064,2]
[403053430,1769105443471,-2500.0,0.00027064,2]